fUSD/lending_fUSD_20250215
["ID","MTS","AMOUNT","RATE_DAILY","PERIOD"]
[353174823,1739628647102,-1171.81,0.00011128,2]
[353174824,1739628647112,-794.85,0.00011128,2]
[353174825,1739628647122,-500.0,0.00011128,2]
[353174826,1739628647133,-372.99,0.00011128,2]
[353174827,1739628647143,-842.67,0.00011128,2]
[353174828,1739628647152,-2696.54,0.00011128,2]
[353174829,1739628647162,-717.7,0.00011128,2]
[353174830,1739628647172,-500.0,0.00011128,2]
[353174831,1739628647182,-637.45,0.00011128,2]
[353174832,1739628647191,-931.06,0.00011128,2]
[353174833,1739628647201,-500.0,0.00011128,2]
[353174834,1739628647210,-227.19,0.00011128,2]
[353174835,1739628647220,-1914.64,0.00011128,2]
[353174836,1739628647229,-500.0,0.00011128,2]
[353174837,1739628647238,-500.0,0.00011128,2]
[353174838,1739628647248,-321.06,0.00011128,2]
[353174839,1739628647257,-575.79,0.00011128,2]
[353174840,1739628647267,-541.81,0.00011128,2]
[353174841,1739628647276,-500.0,0.00011128,2]
[353174842,1739628647286,-1110.29,0.00011128,2]
[353174843,1739628647296,-856.07,0.00011128,2]
[353174844,1739628647306,-181.5,0.00011128,2]
[353174845,1739628647317,-731.39,0.00011128,2]
[353174846,1739628647327,-801.0,0.00011128,2]
[353174847,1739628647336,-500.0,0.00011128,2]
[353174848,1739628647347,-500.0,0.00011128,2]
[353174849,1739628647357,-500.0,0.00011128,2]
[353174850,1739628647367,-771.91,0.00011128,2]
[353174851,1739628647376,-949.36,0.00011128,2]
[353174852,1739628647385,-500.0,0.00011128,2]
[353174853,1739628647395,-393.14,0.00011128,2]
[353174854,1739628647404,-620.36,0.00011128,2]
[353174855,1739628647415,-778.06,0.00011128,2]
[353174856,1739628647425,-500.0,0.00011128,2]
[353174857,1739628647437,-819.84,0.00011128,2]
[353174858,1739628647447,-588.37,0.00011128,2]
[353174859,1739628647456,-511.77,0.00011128,2]
[353174860,1739628647466,-500.0,0.00011128,2]
[353174861,1739628647475,-754.85,0.00011128,2]
[353174862,1739628647484,-500.0,0.00011128,2]
[353174863,1739628647494,-500.0,0.00011128,2]
[353174864,1739628647504,-233.8,0.00011128,2]
[353174865,1739628647513,-500.0,0.00011128,2]
[353174866,1739628647523,-714.76,0.00011128,2]
[353174867,1739628647533,-152.17,0.00011128,2]
[353174868,1739628647543,-500.0,0.00011128,2]
[353174869,1739628647553,-500.0,0.00011128,2]
[353174870,1739628647564,-689.75,0.00011128,2]
[353174871,1739628647577,-569.43,0.00011128,2]
[353174872,1739628647587,-787.14,0.00011128,2]
[353174873,1739628647597,-500.0,0.00011163,2]
[353174874,1739628647609,-953.79,0.00011163,2]
[353174875,1739628647619,-953.79,0.00011163,2]
[353174876,1739628647629,-953.79,0.00011163,2]
[353174877,1739628647639,-953.79,0.00011163,2]
[353174878,1739628647650,-953.79,0.00011163,2]
[353174879,1739628647660,-953.79,0.00011163,2]
[353174880,1739628647670,-953.79,0.00011163,2]
[353174881,1739628647680,-953.79,0.00011163,2]
[353174882,1739628647690,-953.79,0.00011163,2]
[353174883,1739628647700,-953.79,0.00011163,2]
[353174884,1739628647711,-953.79,0.00011163,2]
[353174885,1739628647721,-953.79,0.00011163,2]
[353174886,1739628647731,-953.79,0.00011163,2]
[353174887,1739628647742,-953.79,0.00011163,2]
[353174888,1739628647753,-953.79,0.00011163,2]
[353174889,1739628647763,-953.79,0.00011163,2]
[353174890,1739628647775,-953.79,0.00011163,2]
[353174891,1739628647785,-953.79,0.00011163,2]
[353174892,1739628647795,-953.79,0.00011163,2]
[353174893,1739628647974,-953.79,0.00011163,2]
[353174894,1739628647985,-953.79925904,0.00011163,2]
[353174895,1739628647995,-569.4777537,0.00011163,2]
[353174896,1739628648005,-1886.2881355,0.00011164,2]
[353174897,1739628648015,-2645545.0438498,0.00011164,2]
[353174898,1739628648260,-329.19700001,0.00011164,2]
[353174899,1739628648292,-551.6843175,0.00011164,2]
[353174900,1739628648305,-1357.64318409,0.00011164,2]
[353174901,1739628648741,-500.0,0.00010963,2]
[353174902,1739628648751,-600.71409185,0.00011099,2]
[353174903,1739628648769,-370.9414182,0.00011099,2]
[353174905,1739628782874,201.0,0.00020681,120]
[353174907,1739629041930,500.0,0.0002,120]
[353174908,1739629042162,500.0,0.0002,120]
[353174909,1739629042405,500.0,0.0002,120]
[353174910,1739629042659,500.0,0.0002,120]
[353174911,1739629043029,500.0,0.0002,120]
[353174912,1739629043299,500.0,0.0002,120]
[353174913,1739629043539,500.0,0.0002,120]
[353174914,1739629043802,500.0,0.0002,120]
[353174915,1739629044042,500.0,0.0002,120]
[353174916,1739629044291,500.0,0.0002,120]
[353174917,1739629044560,500.0,0.0002,120]
[353174918,1739629044798,500.0,0.0002,120]
[353174919,1739629045059,500.0,0.0002,120]
[353174920,1739629045284,500.0,0.0002,120]
[353174921,1739629045529,500.0,0.0002,120]
[353174922,1739629045794,500.0,0.0002,120]
[353174923,1739629046120,500.0,0.0002,120]
[353174924,1739629046394,500.0,0.0002,120]
[353174925,1739629046647,500.0,0.0002,120]
[353174926,1739629046898,500.0,0.0002,120]
[353174927,1739629047141,500.0,0.0002,120]
[353174928,1739629047394,500.0,0.0002,120]
[353174929,1739629047638,500.0,0.0002,120]
[353174930,1739629047905,248.03088216,0.0002,120]
[353174931,1739629091890,501.61279018,6.781e-05,7]
[353174936,1739629718585,326.2,8.219e-05,2]
[353174939,1739629774274,-150.0,8.835e-05,2]
[353174940,1739629774295,-738.3979,8.836e-05,2]
[353174941,1739629774317,-2050.60336085,8.836e-05,2]
[353174948,1739629831732,-51120.49853915,8.836e-05,2]
[353174949,1739629831741,-1000.0,9.781e-05,2]
[353174951,1739629831751,-125901.44055083,0.0001,2]
[353174953,1739629831760,-686.30910002,0.0001,2]
[353174954,1739629831770,-1795.38511173,0.00010068,2]
[353174955,1739629831779,-700.0,0.00010068,2]
[353174956,1739629831788,-289.65,0.00010129,2]
[353174958,1739629831797,-332.14,0.00010137,2]
[353174959,1739629831807,-493.18,0.00010144,2]
[353174960,1739629831816,-507.99,0.00010144,2]
[353174961,1739629831825,-492.42,0.00010153,2]
[353174962,1739629831835,-506.39,0.00010166,2]
[353174963,1739629831844,-501.36,0.00010188,2]
[353174964,1739629831854,-1200.0,0.000102,3]
[353174965,1739629831863,-500.68,0.00010222,2]
[353174966,1739629831872,-493.77,0.00010277,2]
[353174967,1739629831881,-2500.0,0.000103,3]
[353174968,1739629831892,-1550.82,0.00010356,2]
[353174969,1739629831902,-496.07,0.00010363,2]
[353174970,1739629831912,-3700.0,0.000104,3]
[353174971,1739629831921,-326.2,0.00010461,2]
[353174972,1739629831931,-509.31,0.00010496,2]
[353174973,1739629831941,-5000.0,0.000105,3]
[353174974,1739629831950,-6200.0,0.000106,3]
[353174975,1739629832166,-1200.0,0.000107,3]
[353174976,1739629832176,-504.81,0.00010707,2]
[353174977,1739629832186,-1200.0,0.000108,3]
[353174978,1739629832195,-986.44,0.00010809,2]
[353174980,1739629832205,-985.04,0.00010809,2]
[353174982,1739629832214,-166.32,0.00010813,2]
[353174983,1739629832223,-1118.27,0.00010813,2]
[353174984,1739629832233,-1200.0,0.000109,3]
[353174985,1739629832242,-154.53782294,0.000109,2]
[353174986,1739629832252,-500.0,0.00010961,2]
[353174987,1739629832261,-500.0,0.00010961,2]
[353174988,1739629832270,-500.0,0.00010961,2]
[353174989,1739629832280,-866.49,0.00010961,2]
[353174990,1739629832289,-514.25,0.00010961,2]
[353174991,1739629832299,-1005.93,0.00010961,2]
[353174992,1739629832308,-754.3,0.00010961,2]
[353174993,1739629832317,-500.0,0.00010961,2]
[353174994,1739629832327,-912.19,0.00010961,2]
[353174995,1739629832336,-885.48,0.00010961,2]
[353174996,1739629832345,-545.67,0.00010961,2]
[353174997,1739629832355,-500.0,0.00010961,2]
[353174998,1739629832363,-1117.78,0.00010961,2]
[353175000,1739629832373,-648.52,0.00010961,2]
[353175002,1739629832382,-1117.69,0.00010961,2]
[353175004,1739629832391,-604.84,0.00010961,2]
[353175005,1739629832400,-507.03611377,0.00010961,2]
[353175007,1739629832410,-500.0,0.00010961,2]
[353175009,1739629832419,-500.0,0.00010961,2]
[353175012,1739629832428,-500.0,0.00010961,2]
[353175013,1739629832437,-500.0,0.00010961,2]
[353175015,1739629832446,-500.0,0.00010961,2]
[353175017,1739629832455,-1189.24,0.00010961,2]
[353175019,1739629832464,-662.18,0.00010961,2]
[353175021,1739629832474,-500.0,0.00010961,2]
[353175023,1739629832483,-500.0,0.00010961,2]
[353175025,1739629832492,-500.0,0.00010961,2]
[353175027,1739629832501,-964.05,0.00010961,2]
[353175029,1739629832510,-802.38,0.00010961,2]
[353175031,1739629832519,-501.21668785,0.00010961,2]
[353175033,1739629832528,-500.0,0.00010961,2]
[353175035,1739629832538,-500.0,0.00010961,2]
[353175037,1739629832547,-603.12,0.00010961,2]
[353175039,1739629832556,-290.23116707,0.00010961,2]
[353175041,1739629832565,-500.0,0.00010961,2]
[353175043,1739629832575,-553.31,0.00010961,2]
[353175045,1739629832584,-500.0,0.00010961,2]
[353175047,1739629832593,-500.0,0.00010961,2]
[353175049,1739629832602,-223.60925343,0.00010961,2]
[353175051,1739629832611,-500.0,0.00010961,2]
[353175053,1739629832620,-506.35,0.00010962,2]
[353175055,1739629832630,-495.23,0.00010962,2]
[353175057,1739629832639,-501.34,0.00010962,2]
[353175059,1739629832649,-509.88,0.00010962,2]
[353175061,1739629832658,-509.57,0.00010962,2]
[353175063,1739629832667,-497.62,0.00010962,2]
[353175065,1739629832677,-505.4,0.00010962,2]
[353175067,1739629832686,-500.32,0.00010962,2]
[353175069,1739629832695,-492.91,0.00010962,2]
[353175071,1739629832704,-494.15,0.00010962,2]
[353175073,1739629832714,-495.74,0.00010962,2]
[353175075,1739629832724,-508.27,0.00010962,2]
[353175077,1739629832733,-499.95,0.00010962,2]
[353175079,1739629832742,-495.04,0.00010962,2]
[353175081,1739629832752,-499.3,0.00010962,2]
[353175083,1739629832762,-500.0,0.00010962,2]
[353175085,1739629832771,-500.0,0.00010962,2]
[353175087,1739629832780,-500.0,0.00010962,2]
[353175089,1739629832790,-500.0,0.00010962,2]
[353175091,1739629832799,-500.0,0.00010962,2]
[353175092,1739629832808,-500.0,0.00010962,2]
[353175093,1739629832817,-500.0,0.00010962,2]
[353175094,1739629832827,-500.0,0.00010962,2]
[353175095,1739629832835,-500.0,0.00010962,2]
[353175096,1739629832845,-500.0,0.00010962,2]
[353175097,1739629832854,-500.0,0.00010962,2]
[353175098,1739629832863,-500.0,0.00010962,2]
[353175099,1739629832872,-500.0,0.00010962,2]
[353175100,1739629832883,-500.0,0.00010962,2]
[353175101,1739629832895,-500.0,0.00010962,2]
[353175102,1739629832905,-500.0,0.00010962,2]
[353175103,1739629832915,-500.0,0.00010962,2]
[353175104,1739629832925,-500.0,0.00010962,2]
[353175105,1739629832936,-500.0,0.00010962,2]
[353175106,1739629832945,-500.0,0.00010962,2]
[353175107,1739629832955,-500.0,0.00010962,2]
[353175108,1739629832965,-504.09828916,0.00010962,2]
[353175109,1739629832974,-500.0,0.00010962,2]
[353175110,1739629832983,-500.0,0.00010962,2]
[353175111,1739629832993,-500.0,0.00010962,2]
[353175112,1739629833002,-500.0,0.00010962,2]
[353175113,1739629833011,-319.47980407,0.00010962,2]
[353175114,1739629833255,-180.52019593,0.00010962,2]
[353175115,1739629833265,-500.0,0.00010962,2]
[353175116,1739629833274,-500.0,0.00010962,2]
[353175117,1739629833284,-500.0,0.00010962,2]
[353175118,1739629833294,-500.0,0.00010962,2]
[353175119,1739629833303,-500.0,0.00010962,2]
[353175120,1739629833312,-500.0,0.00010962,2]
[353175121,1739629833322,-180.26852773,0.00010962,2]
[353175122,1739629833331,-500.0,0.00010962,2]
[353175123,1739629833340,-500.0,0.00010962,2]
[353175124,1739629833349,-500.0,0.00010962,2]
[353175125,1739629833358,-500.0,0.00010962,2]
[353175126,1739629833367,-276.60831265,0.00010962,2]
[353175127,1739629833379,-223.39168735,0.00010962,2]
[353175128,1739629833388,-512.73181918,0.00010962,2]
[353175129,1739629833398,-500.0,0.00010962,2]
[353175130,1739629833407,-500.0,0.00010962,2]
[353175131,1739629833416,-500.0,0.00010962,2]
[353175132,1739629833425,-500.0,0.00010962,2]
[353175133,1739629833435,-500.0,0.00010962,2]
[353175134,1739629833444,-500.0,0.00010962,2]
[353175135,1739629833454,-500.0,0.00010962,2]
[353175136,1739629833463,-500.0,0.00010962,2]
[353175137,1739629833473,-500.0,0.00010962,2]
[353175138,1739629833482,-533.57726049,0.00010962,2]
[353175139,1739629833491,-500.0,0.00010962,2]
[353175140,1739629833500,-500.0,0.00010962,2]
[353175141,1739629833510,-500.0,0.00010962,2]
[353175142,1739629833520,-500.0,0.00010962,2]
[353175143,1739629833529,-500.0,0.00010962,2]
[353175144,1739629833538,-500.0,0.00010962,2]
[353175145,1739629833547,-500.0,0.00010962,2]
[353175146,1739629833557,-500.0,0.00010962,2]
[353175147,1739629833566,-629.22,0.00010962,2]
[353175148,1739629833575,-500.0,0.00010962,2]
[353175149,1739629833585,-500.0,0.00010962,2]
[353175150,1739629833595,-500.0,0.00010962,2]
[353175151,1739629833604,-500.0,0.00010962,2]
[353175152,1739629833613,-500.0,0.00010962,2]
[353175153,1739629833623,-500.0,0.00010962,2]
[353175154,1739629833632,-500.0,0.00010962,2]
[353175155,1739629833641,-500.0,0.00010962,2]
[353175156,1739629833650,-500.0,0.00010962,2]
[353175157,1739629833660,-500.0,0.00010963,2]
[353175158,1739629833669,-500.0,0.00010963,2]
[353175159,1739629833678,-500.0,0.00010963,2]
[353175160,1739629833688,-500.0,0.00010963,2]
[353175161,1739629833697,-500.0,0.00010963,2]
[353175162,1739629833707,-500.0,0.00010963,2]
[353175163,1739629833716,-500.0,0.00010963,2]
[353175164,1739629833726,-500.0,0.00010963,2]
[353175165,1739629833735,-500.0,0.00010963,2]
[353175166,1739629833744,-500.0,0.00010963,2]
[353175167,1739629833754,-500.0,0.00010963,2]
[353175168,1739629833764,-500.0,0.00010963,2]
[353175169,1739629833774,-528.93936446,0.00010963,2]
[353175170,1739629833783,-500.0,0.00010963,2]
[353175171,1739629833792,-549.95583035,0.00010963,2]
[353175172,1739629833803,-500.0,0.00010963,2]
[353175173,1739629833812,-500.0,0.00010963,2]
[353175174,1739629833822,-500.0,0.00010963,2]
[353175175,1739629833831,-500.0,0.00010963,2]
[353175176,1739629833841,-500.0,0.00010963,2]
[353175177,1739629833850,-500.0,0.00010963,2]
[353175178,1739629833860,-19.78914113,0.00010963,2]
[353175179,1739629833945,-326.40072216,0.00010963,2]
[353175180,1739629833955,-500.0,0.00010963,2]
[353175181,1739629833966,-500.0,0.00010963,2]
[353175182,1739629833976,-393.61621516,0.00010963,2]
[353175183,1739629833991,-106.38378484,0.00010963,2]
[353175184,1739629834001,-500.0,0.00010963,2]
[353175185,1739629834010,-500.0,0.00010963,2]
[353175186,1739629834021,-500.0,0.00010963,2]
[353175187,1739629834030,-500.0,0.00010963,2]
[353175188,1739629834040,-232.68721516,0.00010963,2]
[353175189,1739629834060,-267.31278484,0.00010963,2]
[353175190,1739629834070,-500.0,0.00010963,2]
[353175191,1739629834080,-500.0,0.00010963,2]
[353175192,1739629834089,-506.11978915,0.00010963,2]
[353175193,1739629834099,-500.0,0.00010963,2]
[353175194,1739629834108,-500.0,0.00010963,2]
[353175195,1739629834118,-500.0,0.00010963,2]
[353175196,1739629834128,-500.0,0.00010963,2]
[353175197,1739629834137,-500.20002219,0.00010963,2]
[353175198,1739629834146,-500.0,0.00010963,2]
[353175199,1739629834157,-500.0,0.00010963,2]
[353175200,1739629834166,-500.0,0.00010963,2]
[353175201,1739629834176,-240.88987828,0.00010963,2]
[353175202,1739629834186,-515.35752233,0.00010963,2]
[353175203,1739629834196,-500.0,0.00010963,2]
[353175204,1739629834205,-500.0,0.00010963,2]
[353175205,1739629834215,-219.89780956,0.00010963,2]
[353175206,1739629834225,-986.44,0.00011,2]
[353175207,1739629834235,-287.28,0.00011,2]
[353175208,1739629834244,-150.0,0.00011,2]
[353175209,1739629834254,-986.44,0.00011,2]
[353175210,1739629834263,-1000.0,0.00011003,2]
[353175211,1739629834273,-582.62,0.00011042,2]
[353175212,1739629834284,-614.81,0.00011042,2]
[353175213,1739629834293,-500.0,0.00011042,2]
[353175214,1739629834303,-500.0,0.00011042,2]
[353175215,1739629834312,-736.83,0.00011042,2]
[353175216,1739629834322,-500.0,0.00011042,2]
[353175217,1739629834332,-153.620143,0.00011042,2]
[353175218,1739629834342,-549.43,0.00011042,2]
[353175219,1739629834351,-500.0,0.00011042,2]
[353175220,1739629834361,-500.0,0.00011042,2]
[353175221,1739629834371,-500.0,0.00011042,2]
[353175222,1739629834380,-500.0,0.00011042,2]
[353175223,1739629834390,-500.0,0.00011042,2]
[353175224,1739629834400,-500.0,0.00011042,2]
[353175225,1739629834410,-803.02,0.00011042,2]
[353175226,1739629834420,-766.93,0.00011042,2]
[353175227,1739629834430,-918.78,0.00011042,2]
[353175228,1739629834440,-151.472388,0.00011042,2]
[353175229,1739629834450,-2684.05,0.00011042,2]
[353175230,1739629834460,-538.92,0.00011042,2]
[353175231,1739629834470,-823.56,0.00011042,2]
[353175232,1739629834481,-559.19,0.00011042,2]
[353175233,1739629834490,-771.88,0.00011042,2]
[353175234,1739629834499,-500.0,0.00011042,2]
[353175235,1739629834508,-500.0,0.00011042,2]
[353175236,1739629834519,-1930.95,0.00011042,2]
[353175237,1739629834528,-500.0,0.00011042,2]
[353175238,1739629834538,-663.91,0.00011042,2]
[353175239,1739629834547,-823.31,0.00011042,2]
[353175240,1739629834556,-971.88,0.00011042,2]
[353175241,1739629834567,-507.78,0.00011042,2]
[353175242,1739629834576,-500.0,0.00011042,2]
[353175243,1739629834586,-733.54,0.00011042,2]
[353175244,1739629834595,-500.0,0.00011042,2]
[353175245,1739629834605,-521.4,0.00011043,2]
[353175246,1739629834615,-500.0,0.00011043,2]
[353175247,1739629834625,-500.0,0.00011043,2]
[353175248,1739629834637,-600.11,0.00011043,2]
[353175249,1739629834646,-500.0,0.00011043,2]
[353175250,1739629834655,-500.0,0.00011043,2]
[353175251,1739629834664,-500.0,0.00011043,2]
[353175252,1739629834675,-500.90151274,0.00011043,2]
[353175253,1739629834686,-500.0,0.00011043,2]
[353175254,1739629834696,-500.0,0.00011043,2]
[353175255,1739629834704,-589.84934147,0.00011043,2]
[353175256,1739629834714,-500.0,0.00011043,2]
[353175257,1739629834723,-500.0,0.00011043,2]
[353175258,1739629834734,-500.0,0.00011043,2]
[353175259,1739629834743,-500.0,0.00011043,2]
[353175260,1739629834752,-500.0,0.00011043,2]
[353175261,1739629834761,-500.0,0.00011043,2]
[353175262,1739629834770,-500.0,0.00011043,2]
[353175263,1739629834780,-505.14548056,0.00011043,2]
[353175264,1739629834789,-500.9935282,0.00011043,2]
[353175265,1739629834800,-500.0,0.00011043,2]
[353175266,1739629834810,-542.20387612,0.00011043,2]
[353175267,1739629834819,-500.0,0.00011043,2]
[353175268,1739629834827,-500.49884996,0.00011043,2]
[353175269,1739629834838,-500.0,0.00011043,2]
[353175270,1739629834847,-501.59465553,0.00011043,2]
[353175271,1739629834856,-500.0,0.00011043,2]
[353175272,1739629834865,-500.0,0.00011043,2]
[353175273,1739629834875,-500.0,0.00011043,2]
[353175274,1739629834885,-500.0,0.00011043,2]
[353175275,1739629834898,-500.0,0.00011043,2]
[353175276,1739629834907,-500.0,0.00011043,2]
[353175277,1739629834917,-501.29873366,0.00011043,2]
[353175278,1739629834928,-500.0,0.00011043,2]
[353175279,1739629834938,-500.0,0.00011043,2]
[353175280,1739629834948,-503.4784583,0.00011043,2]
[353175281,1739629834958,-500.0,0.00011043,2]
[353175282,1739629834968,-500.0,0.00011043,2]
[353175283,1739629834979,-502.17212235,0.00011043,2]
[353175284,1739629834989,-501.0150584,0.00011043,2]
[353175285,1739629834999,-500.70862141,0.00011043,2]
[353175286,1739629835009,-503.36967712,0.00011043,2]
[353175287,1739629835018,-500.0,0.00011043,2]
[353175288,1739629835028,-504.33790305,0.00011043,2]
[353175289,1739629835038,-500.0,0.00011043,2]
[353175290,1739629835047,-501.70150771,0.00011043,2]
[353175291,1739629835056,-500.0,0.00011043,2]
[353175292,1739629835066,-500.0,0.00011043,2]
[353175293,1739629835075,-500.0,0.00011043,2]
[353175294,1739629835085,-502.95514053,0.00011043,2]
[353175295,1739629835096,-500.0,0.00011043,2]
[353175296,1739629835106,-500.0,0.00011043,2]
[353175297,1739629835115,-500.0,0.00011043,2]
[353175298,1739629835125,-500.0,0.00011043,2]
[353175299,1739629835135,-621.98,0.00011043,2]
[353175300,1739629835144,-572.7,0.00011043,2]
[353175301,1739629835153,-500.0,0.00011043,2]
[353175302,1739629835164,-502.23849842,0.00011043,2]
[353175303,1739629835173,-508.9270869,0.00011043,2]
[353175304,1739629835184,-500.0,0.00011043,2]
[353175305,1739629835193,-500.0,0.00011043,2]
[353175306,1739629835203,-500.0,0.00011043,2]
[353175307,1739629835212,-500.0,0.00011043,2]
[353175308,1739629835223,-501.47703075,0.00011043,2]
[353175309,1739629835233,-500.0,0.00011043,2]
[353175310,1739629835242,-500.0,0.00011043,2]
[353175311,1739629835251,-500.0,0.00011043,2]
[353175312,1739629835261,-500.0,0.00011043,2]
[353175313,1739629835270,-502.87109302,0.00011043,2]
[353175314,1739629835280,-500.0,0.00011043,2]
[353175315,1739629835289,-503.46935905,0.00011043,2]
[353175316,1739629835299,-580.02,0.00011043,2]
[353175317,1739629835309,-500.0,0.00011043,2]
[353175318,1739629835318,-564.0,0.00011043,2]
[353175319,1739629835327,-500.0,0.00011043,2]
[353175320,1739629835337,-500.0,0.00011043,2]
[353175321,1739629835348,-500.46051756,0.00011043,2]
[353175322,1739629835357,-500.0,0.00011043,2]
[353175323,1739629835366,-500.64581842,0.00011043,2]
[353175324,1739629835375,-500.0,0.00011043,2]
[353175325,1739629835384,-501.69376639,0.00011043,2]
[353175326,1739629835393,-500.0,0.00011043,2]
[353175327,1739629835403,-500.0,0.00011043,2]
[353175328,1739629835412,-500.0,0.00011043,2]
[353175329,1739629835422,-500.0,0.00011043,2]
[353175330,1739629835431,-500.0,0.00011043,2]
[353175331,1739629835440,-500.0,0.00011043,2]
[353175332,1739629835450,-500.0,0.00011043,2]
[353175333,1739629835459,-500.0,0.00011043,2]
[353175334,1739629835469,-500.0,0.00011043,2]
[353175335,1739629835479,-591.82,0.00011043,2]
[353175336,1739629835489,-500.0,0.00011043,2]
[353175337,1739629835498,-500.0,0.00011043,2]
[353175338,1739629835508,-500.0,0.00011043,2]
[353175339,1739629835518,-500.0,0.00011043,2]
[353175340,1739629835527,-500.0,0.00011043,2]
[353175341,1739629835537,-500.0,0.00011043,2]
[353175342,1739629835547,-500.0,0.00011043,2]
[353175343,1739629835556,-504.54184634,0.00011043,2]
[353175344,1739629835566,-500.0,0.00011043,2]
[353175345,1739629835576,-647.33,0.00011043,2]
[353175346,1739629835586,-500.0,0.00011043,2]
[353175347,1739629835600,-500.0,0.00011043,2]
[353175348,1739629835610,-1181.63,0.00011043,2]
[353175349,1739629835621,-501.29055799,0.00011043,2]
[353175350,1739629835631,-500.0,0.00011043,2]
[353175351,1739629835641,-500.79350482,0.00011043,2]
[353175352,1739629835651,-500.0,0.00011043,2]
[353175353,1739629835661,-500.0,0.00011043,2]
[353175354,1739629835670,-500.0,0.00011043,2]
[353175355,1739629835680,-500.0,0.00011043,2]
[353175356,1739629835690,-500.0,0.00011043,2]
[353175357,1739629835699,-500.0,0.00011043,2]
[353175358,1739629835708,-500.0,0.00011043,2]
[353175359,1739629835718,-500.0,0.00011043,2]
[353175360,1739629835729,-500.0,0.00011043,2]
[353175361,1739629835738,-500.0,0.00011043,2]
[353175362,1739629835747,-500.0,0.00011043,2]
[353175363,1739629835758,-500.0,0.00011043,2]
[353175364,1739629835768,-500.0,0.00011043,2]
[353175365,1739629835777,-500.0,0.00011043,2]
[353175366,1739629835787,-500.0,0.00011043,2]
[353175367,1739629835798,-500.0,0.00011043,2]
[353175368,1739629835808,-534.89,0.00011043,2]
[353175369,1739629835817,-500.0,0.00011043,2]
[353175370,1739629835827,-500.0,0.00011043,2]
[353175371,1739629835836,-500.85849681,0.00011043,2]
[353175372,1739629835846,-500.0,0.00011043,2]
[353175373,1739629835857,-500.0,0.00011043,2]
[353175374,1739629835866,-500.0,0.00011043,2]
[353175375,1739629835876,-500.0,0.00011043,2]
[353175376,1739629835889,-500.0,0.00011043,2]
[353175377,1739629835901,-500.0,0.00011043,2]
[353175378,1739629835911,-500.0,0.00011043,2]
[353175379,1739629835921,-500.0,0.00011043,2]
[353175380,1739629836112,-500.0,0.00011043,2]
[353175381,1739629836121,-500.0,0.00011043,2]
[353175382,1739629836131,-501.05340065,0.00011043,2]
[353175383,1739629836140,-500.0,0.00011043,2]
[353175384,1739629836149,-500.0,0.00011043,2]
[353175385,1739629836159,-500.0,0.00011043,2]
[353175386,1739629836168,-500.0,0.00011043,2]
[353175387,1739629836179,-500.0,0.00011043,2]